bitfinex-derivatives/quotes_BTCF0:USTF0_20260131
["timestamp","ask_amount","ask_price","bid_price","bid_amount"]
[1769886590612,0.12768782,78346.0,78314.0,0.012787]
[1769886590811,0.2813409,78349.0,78314.0,0.012787]
[1769886591002,0.12769027,78345.0,78314.0,0.076725]
[1769886591410,0.2813409,78354.0,78314.0,0.012787]
[1769886591611,0.2813409,78347.0,78306.0,0.09208]
[1769886592108,0.2813409,78345.0,78306.0,0.09208]
[1769886592506,0.3734209,78345.0,78307.0,0.012788]
[1769886592710,0.12767234,78344.0,78314.0,0.001]
[1769886593503,0.12767234,78344.0,78314.0,0.011787]
[1769886593907,0.09208,78344.0,78314.0,0.011787]
[1769886594113,0.2183409,78342.0,78306.0,0.09208]
[1769886594310,0.2183409,78342.0,78314.0,0.001]
[1769886594504,0.01278,78361.0,78307.0,0.29124763]
[1769886594813,0.33684,78390.0,78307.0,0.29124763]
[1769886594814,0.12767478,78341.0,78308.0,0.012788]
[1769886595015,0.33684,78360.0,78306.0,0.09208]
[1769886595312,0.12767478,78340.0,78306.0,0.09208]
[1769886595505,0.09208,78339.0,78306.0,0.09208]
[1769886595704,0.09208,78338.0,78306.0,0.09208]
[1769886595902,0.09208,78338.0,78314.0,0.001]
[1769886596103,0.2813409,78337.0,78289.0,0.09208]
[1769886596309,0.2813409,78336.0,78292.0,0.012791]
[1769886596806,0.56424485,78369.0,78324.0,0.29124763]
[1769886597114,0.12769272,78368.0,78336.0,0.012783]
[1769886597409,0.2813409,78381.0,78349.0,0.012781]
[1769886597610,0.2813409,78398.0,78349.0,0.012781]
[1769886597808,1.6e-07,78367.0,78351.0,0.012781]
[1769886598106,0.33684,78418.0,78346.0,0.063911]
[1769886598107,0.2813409,78423.0,78363.0,0.063898]
[1769886598305,0.2813409,78423.0,78377.0,0.30402463]
[1769886598506,1.6e-07,78397.0,78384.0,0.30402363]
[1769886598711,0.2813409,78429.0,78384.0,0.30402363]
[1769886598915,0.2813409,78429.0,78392.0,0.012774]
[1769886599211,0.1275624,78430.0,78394.0,0.30402163]
[1769886599514,0.1275624,78441.0,78394.0,0.012774]
[1769886599710,0.2813409,78440.0,78394.0,0.012774]
[1769886600314,0.2813409,78436.0,78378.0,0.09208]
[1769886600504,0.2813409,78436.0,78379.0,0.012776]
[1769886600710,0.2813409,78436.0,78385.0,0.012775]
[1769886600910,0.12752336,78435.0,78400.0,0.29124763]
[1769886601210,0.2813409,78438.0,78402.0,0.012773]
[1769886601409,0.2433409,78438.0,78401.0,0.4288]
[1769886601607,0.12752336,78439.0,78402.0,0.29124763]
[1769886601809,0.001,78440.0,78405.0,0.012772]
[1769886602005,0.12751849,78438.0,78405.0,0.012772]
[1769886602409,0.09204,78454.0,78405.0,0.30401963]
[1769886602610,0.1048,78480.0,78417.0,0.29124763]
[1769886602810,0.1048,78480.0,78419.0,0.29124763]
[1769886603011,0.12651605,78453.0,78422.0,0.29124763]
[1769886603312,0.3313409,78499.0,78432.0,0.29124763]
[1769886603510,0.3313409,78499.0,78446.0,0.29124763]
[1769886603709,0.12749003,78479.0,78448.0,0.29124763]
[1769886603909,0.12749003,78479.0,78447.0,0.349445]
[1769886603910,0.05,78499.0,78461.0,0.29124763]
[1769886604213,0.12749003,78498.0,78473.0,0.29124763]
[1769886604409,0.2813409,78527.0,78481.0,0.29124763]
[1769886604807,0.33664,78549.0,78474.0,0.42868]
[1769886604808,0.2813409,78564.0,78506.0,0.012756]
[1769886605013,0.2813409,78554.0,78507.0,0.42864]
[1769886605309,0.092,78583.0,78507.0,0.092]
[1769886605310,0.12741206,78535.0,78507.0,0.092]
[1769886605618,0.2813409,78548.0,78507.0,0.092]
[1769886605914,0.2813409,78548.0,78483.0,0.012759]
[1769886605915,0.2813409,78533.0,78489.0,0.092]
[1769886606307,0.2813409,78546.0,78492.0,0.012758]
[1769886606510,0.2813409,78546.0,78493.0,0.20044998]
[1769886606707,0.2813409,78523.0,78465.0,0.092]
[1769886606908,0.29018947,78504.0,78451.0,0.092]
[1769886607109,0.29018947,78496.0,78452.0,0.092]
[1769886607310,0.29018947,78477.0,78431.0,0.36092365]
[1769886607509,0.29018947,78475.0,78431.0,0.36092365]
[1769886607712,0.155766,78476.0,78401.0,0.20058879]
[1769886607713,0.29018947,78453.0,78401.0,0.20058879]
[1769886607913,0.30295647,78436.0,78399.0,0.09196]
[1769886608106,0.29018947,78436.0,78393.0,0.09196]
[1769886608312,0.012766,78445.0,78363.0,0.012779]
[1769886608313,0.29018947,78421.0,78363.0,0.012779]
[1769886608517,0.05173,78420.0,78362.0,0.19122546]
[1769886609013,0.12752743,78419.0,78374.0,0.17830924]
[1769886609219,0.30295847,78428.0,78376.0,0.17830924]
[1769886609523,0.0001128,78418.0,78376.0,0.17830924]
[1769886609710,0.012767,78438.0,78376.0,0.17830924]
[1769886609918,0.12754776,78417.0,78380.0,0.012776]
[1769886610116,0.0001381,78416.0,78381.0,0.19767437]
[1769886610519,0.0001381,78416.0,78378.0,0.19767437]
[1769886610520,0.12754776,78415.0,78378.0,0.19767437]
[1769886610711,0.12754776,78415.0,78389.0,0.21044937]
[1769886610912,0.29018947,78443.0,78400.0,0.012773]
[1769886611225,0.12755346,78442.0,78402.0,0.19767437]
[1769886611621,0.29018947,78439.0,78386.0,0.012775]
[1769886611922,0.09196,78438.0,78394.0,0.012774]
[1769886612222,0.09196,78438.0,78396.0,0.012774]
[1769886612421,0.1275676,78437.0,78408.0,0.012772]
[1769886612813,5.237e-05,78437.0,78408.0,0.012772]
[1769886613013,0.12752336,78436.0,78404.0,0.2253902]
[1769886613216,0.12752336,78436.0,78407.0,0.012772]
[1769886613421,3.6e-07,78436.0,78423.0,0.012769]
[1769886613717,0.33644,78503.0,78404.0,0.063863]
[1769886613718,0.012752,78532.0,78471.0,0.22533747]
[1769886613922,0.01275,78545.0,78480.0,0.2265365]
[1769886614114,0.09196,78548.0,78484.0,0.09902045]
[1769886614314,0.12751605,78544.0,78489.0,0.09902045]
[1769886614516,0.12751605,78544.0,78499.0,0.09902045]
[1769886614723,0.29018947,78566.0,78501.0,0.09902045]
[1769886614917,0.29018947,78566.0,78498.0,0.012757]
[1769886615118,0.29018947,78564.0,78498.0,0.012757]
[1769886615323,0.29018947,78562.0,78490.0,0.09196]
[1769886615521,0.29018947,78562.0,78494.0,0.09902045]
[1769886615713,0.27718947,78560.0,78492.0,0.012758]
[1769886615913,0.076485,78559.0,78493.0,0.09196]
[1769886616228,0.104706,78570.0,78496.0,0.012757]
[1769886616428,0.104706,78570.0,78493.0,0.155752]
[1769886616429,0.12733824,78558.0,78501.0,0.10138746]
[1769886616728,0.012741,78597.0,78526.0,0.10138746]
[1769886616924,0.01604622,78605.0,78544.0,0.06375]
[1769886617227,0.09192,78620.0,78557.0,0.10138746]
[1769886617426,0.127335,78604.0,78569.0,0.10138746]
[1769886617620,0.09192,78639.0,78568.0,0.076477]
[1769886617621,0.09192,78639.0,78576.0,0.10138746]
[1769886617817,0.41743455,78638.0,78582.0,0.17784946]
[1769886618021,0.41743455,78638.0,78591.0,0.012742]
[1769886618224,0.09192,78639.0,78595.0,0.08632527]
[1769886618522,0.29018947,78636.0,78581.0,0.012744]
[1769886618724,0.29018947,78636.0,78564.0,0.08632527]
[1769886618725,0.29018947,78636.0,78574.0,0.09907027]
[1769886618926,0.12719895,78635.0,78576.0,0.08632527]
[1769886619224,0.12719895,78635.0,78573.0,0.063726]
[1769886619225,0.29018947,78634.0,78562.0,0.012747]
[1769886619431,0.07642,78627.0,78550.0,0.012749]
[1769886619628,0.29018947,78608.0,78529.0,0.076514]
[1769886619924,0.29018947,78608.0,78488.0,0.063795]
[1769886619925,0.2944954,78594.0,78515.0,0.09188]
[1769886620119,0.09188,78600.0,78535.0,0.01651379]
[1769886620325,0.1272297,78593.0,78541.0,0.076502]
[1769886620520,0.1272297,78593.0,78541.0,0.01275]
[1769886620721,0.2944954,78599.0,78521.0,0.01651379]
[1769886620927,0.29446142,78566.0,78491.0,0.012758]
[1769886621122,0.29446142,78564.0,78491.0,0.012758]
[1769886621425,0.29446142,78562.0,78493.0,0.012758]
[1769886621732,0.29446142,78562.0,78486.0,0.09188]
[1769886622031,0.29446142,78560.0,78489.0,0.012759]
[1769886622227,0.29018947,78558.0,78499.0,0.012757]
[1769886622428,0.29018947,78558.0,78516.0,0.012754]
[1769886622620,0.29018947,78558.0,78505.0,0.063782]
[1769886622621,0.12734392,78557.0,78530.0,0.012752]
[1769886622825,8.4e-07,78557.0,78540.0,0.01275]
[1769886623022,0.29018947,78575.0,78529.0,0.012752]
[1769886623225,0.1273423,78556.0,78529.0,0.012752]
[1769886623423,0.29018947,78555.0,78507.0,0.012756]
[1769886623628,0.29018947,78553.0,78487.0,0.012759]
[1769886623833,0.29018947,78551.0,78496.0,0.012757]
[1769886624036,0.29018947,78551.0,78506.0,0.012756]
[1769886624229,0.29018947,78551.0,78494.0,0.09188]
[1769886624230,0.1273196,78550.0,78526.0,0.063765]
[1769886624430,0.29018947,78582.0,78532.0,0.012752]
[1769886624632,0.09188,78586.0,78531.0,0.09188]
[1769886624633,0.1273196,78549.0,78531.0,0.09188]
[1769886624827,0.29018947,78548.0,78511.0,0.012755]
[1769886625125,0.29018947,78546.0,78488.0,0.012759]
[1769886625436,0.42788,78547.0,78476.0,0.012761]
[1769886625437,0.29018947,78533.0,78476.0,0.012761]
[1769886625734,0.42788,78547.0,78466.0,0.012762]
[1769886625735,0.29018947,78526.0,78466.0,0.012762]
[1769886625930,0.29018947,78518.0,78456.0,0.012764]
[1769886626133,0.29018947,78515.0,78456.0,0.012764]
[1769886626332,0.29018947,78506.0,78447.0,0.012765]
[1769886626635,0.29018947,78491.0,78445.0,0.012766]
[1769886627039,0.58674668,78505.0,78463.0,0.012763]
[1769886627040,0.29018947,78505.0,78463.0,0.012763]
[1769886627237,0.12742668,78490.0,78463.0,0.012763]
[1769886627429,0.29018947,78489.0,78454.0,0.012764]
[1769886627630,0.12742668,78490.0,78436.0,0.104607]
[1769886627631,0.29018947,78487.0,78436.0,0.104607]
[1769886627832,0.29018947,78487.0,78436.0,0.012767]
[1769886628031,0.29018947,78482.0,78428.0,0.012768]
[1769886628429,0.29018947,78482.0,78446.0,0.012766]
[1769886628734,0.29018947,78480.0,78437.0,0.012767]
[1769886629434,0.29018947,78478.0,78437.0,0.012767]
[1769886630033,0.12745591,78477.0,78431.0,0.063842]
[1769886630233,0.12745591,78477.0,78445.0,0.012766]
[1769886630633,9.415e-05,78476.0,78445.0,0.012766]
[1769886631033,0.12745185,78475.0,78444.0,0.09188]
[1769886631239,0.12745185,78475.0,78427.0,0.104649]
[1769886631434,0.09188,78484.0,78442.0,0.012766]
[1769886631633,0.12745185,78481.0,78442.0,0.012766]
[1769886631936,0.09188,78484.0,78456.0,0.012764]
[1769886632138,0.1274681,78480.0,78445.0,0.012766]
[1769886632442,0.09188,78484.0,78445.0,0.012766]
[1769886632648,0.1274681,78479.0,78445.0,0.012766]
[1769886632944,0.29018947,78478.0,78437.0,0.012767]
[1769886633140,0.29018947,78476.0,78429.0,0.012768]
[1769886633346,0.29018947,78474.0,78425.0,0.012769]
[1769886633647,0.29018947,78470.0,78426.0,0.09188]
[1769886633848,0.29018947,78468.0,78427.0,0.012769]
[1769886634045,0.29018947,78466.0,78427.0,0.012769]
[1769886634444,0.29018947,78466.0,78404.0,0.21083747]
[1769886634445,0.30295247,78464.0,78414.0,0.012771]
[1769886634742,0.30295247,78462.0,78414.0,0.012771]
[1769886634943,0.12747541,78463.0,78434.0,0.012767]
[1769886635141,0.29018947,78467.0,78425.0,0.012769]
[1769886635448,0.12747541,78462.0,78431.0,0.012768]
[1769886635643,0.29018947,78467.0,78431.0,0.012768]
[1769886635849,0.12747622,78461.0,78431.0,0.012768]
[1769886636249,0.33616,78499.0,78421.0,0.09188]
[1769886636250,0.29018947,78459.0,78424.0,0.012769]
[1769886636443,0.29018947,78457.0,78390.0,0.22184729]
[1769886636649,0.30295347,78455.0,78409.0,0.012772]
[1769886636848,0.29018947,78453.0,78409.0,0.012772]
[1769886637052,0.29470515,78447.0,78402.0,0.012773]
[1769886637257,0.012768,78430.0,78388.0,0.012775]
[1769886637447,0.29470515,78444.0,78379.0,0.22198423]
[1769886637646,0.29470515,78442.0,78393.0,0.012774]
[1769886637851,0.29470515,78436.0,78385.0,0.012775]
[1769886638160,0.29470515,78440.0,78395.0,0.012774]
[1769886638350,0.012767,78439.0,78395.0,0.012774]
[1769886638549,0.42223095,78439.0,78390.0,0.23127263]
[1769886638750,0.1275258,78439.0,78411.0,0.012771]
[1769886638954,0.1275258,78439.0,78404.0,0.104692]
[1769886639155,0.29470515,78434.0,78387.0,0.012775]
[1769886639350,0.29470515,78434.0,78400.0,0.012773]
[1769886639551,0.12752336,78438.0,78406.0,0.012772]
[1769886639744,0.09192,78444.0,78412.0,0.012771]
[1769886639944,0.12752336,78433.0,78412.0,0.012771]
[1769886640152,0.09192,78444.0,78412.0,0.012771]
[1769886640457,0.12764246,78432.0,78412.0,0.012771]
[1769886640651,0.0001191,78432.0,78412.0,0.012771]
[1769886641051,0.12750548,78431.0,78418.0,0.01277]
[1769886641249,0.12750548,78431.0,78403.0,0.09192]
[1769886641754,0.12750548,78431.0,78413.0,0.012771]
[1769886641946,9.52e-05,78430.0,78419.0,0.01277]
[1769886642348,0.09192,78462.0,78429.0,0.012768]
[1769886642546,0.09192,78462.0,78406.0,0.22974538]
[1769886642547,0.27382572,78424.0,78357.0,0.10006008]
[1769886642746,0.27382572,78411.0,78369.0,0.012778]
[1769886643055,0.27382572,78411.0,78366.0,0.09192]
[1769886643352,0.012773,78400.0,78364.0,0.09192]
[1769886643958,0.27392185,78388.0,78345.0,0.012782]
[1769886644251,0.27382572,78386.0,78345.0,0.012782]
[1769886644651,9.613e-05,78374.0,78341.0,0.09192]
[1769886644952,0.27382572,78372.0,78341.0,0.09192]
[1769886645157,0.27382572,78372.0,78324.0,0.00013277]
[1769886645158,9.613e-05,78366.0,78331.0,0.012784]
[1769886645460,0.27382572,78382.0,78332.0,0.012784]
[1769886645656,0.09192,78388.0,78325.0,0.09192]
[1769886645657,0.12760717,78365.0,78325.0,0.09192]
[1769886645961,0.09192,78368.0,78331.0,0.012784]
[1769886646255,0.09192,78368.0,78325.0,0.09192]
[1769886646256,0.09192,78368.0,78338.0,0.012783]
[1769886646450,0.09192,78368.0,78343.0,0.012782]
[1769886646651,0.12777075,78367.0,78349.0,0.012781]
[1769886647159,0.00013589,78367.0,78342.0,0.09196]
[1769886647360,4.2e-07,78367.0,78359.0,0.01278]
[1769886647559,4.2e-07,78367.0,78359.0,0.10474]
[1769886647960,0.09196,78397.0,78365.0,0.012779]
[1769886648260,2.4e-07,78366.0,78365.0,0.012779]
[1769886648460,0.27382572,78384.0,78358.0,0.09196]
[1769886648662,0.09196,78397.0,78365.0,0.012779]
[1769886649055,0.12760717,78383.0,78350.0,0.063908]
[1769886649259,0.09196,78397.0,78369.0,0.012778]
[1769886649460,9.613e-05,78394.0,78369.0,0.012778]
[1769886649663,0.12760717,78382.0,78363.0,0.012779]
[1769886649858,0.09196,78397.0,78363.0,0.012779]
[1769886650061,9.613e-05,78387.0,78356.0,0.01278]
[1769886650362,9.613e-05,78387.0,78355.0,0.09196]
[1769886650553,0.12757868,78386.0,78344.0,0.28699965]
[1769886650754,0.28660172,78384.0,78345.0,0.09196]
[1769886651064,0.28660172,78384.0,78346.0,0.09196]
[1769886651267,0.12759821,78383.0,78346.0,0.09196]
[1769886651564,0.12759821,78383.0,78357.0,0.01278]
[1769886651756,9.613e-05,78392.0,78347.0,0.33644]
[1769886651958,0.1403848,78382.0,78347.0,0.33644]
[1769886652358,9.613e-05,78376.0,78347.0,0.33644]
[1769886652556,0.1276088,78381.0,78348.0,0.28699965]
[1769886652754,0.012773,78401.0,78354.0,0.012781]
[1769886653160,0.12761368,78380.0,78365.0,0.012779]
[1769886653360,0.09196,78406.0,78366.0,0.09196]
[1769886653558,0.12761368,78379.0,78366.0,0.09196]
[1769886653965,0.27382572,78399.0,78366.0,0.09196]
[1769886654262,8e-07,78378.0,78366.0,0.09196]
[1769886654461,0.27382572,78399.0,78366.0,0.09196]
[1769886654660,0.27382572,78397.0,78366.0,0.09196]
[1769886655166,0.12759659,78396.0,78366.0,0.09196]
[1769886655367,0.27382572,78395.0,78366.0,0.09196]
[1769886655762,0.28659972,78395.0,78366.0,0.09196]
[1769886655959,0.09196,78406.0,78340.0,0.28699965]
[1769886655960,0.27382572,78383.0,78340.0,0.012783]
[1769886656162,0.092,78383.0,78345.0,0.012782]
[1769886656663,0.092,78383.0,78346.0,0.092]
[1769886656664,0.27382572,78381.0,78346.0,0.092]
[1769886657067,0.27382572,78375.0,78346.0,0.092]
[1769886657264,0.28660472,78363.0,78335.0,0.092]
[1769886657559,0.27382572,78364.0,78310.0,0.28699965]
[1769886657560,0.28660772,78348.0,78310.0,0.012788]
[1769886657867,0.28660872,78343.0,78302.0,0.092]
[1769886658060,0.012784,78334.0,78299.0,0.33699965]
[1769886658256,0.092,78342.0,78301.0,0.012789]
[1769886658257,0.012783,78339.0,78301.0,0.012789]
[1769886658460,0.012783,78340.0,78301.0,0.012789]
[1769886658657,0.28660872,78340.0,78301.0,0.012789]
[1769886658858,0.27382572,78336.0,78300.0,0.092]
[1769886659062,0.27382572,78334.0,78300.0,0.092]
[1769886659259,0.092,78342.0,78300.0,0.092]
[1769886659463,0.1276813,78333.0,78300.0,0.092]
[1769886659666,0.092,78342.0,78302.0,0.012789]
[1769886659868,0.092,78342.0,78300.0,0.092]
[1769886660069,0.12767967,78332.0,78300.0,0.092]
[1769886660258,0.27382572,78331.0,78300.0,0.092]
[1769886660465,0.27382572,78329.0,78300.0,0.092]
[1769886660671,0.012785,78327.0,78300.0,0.092]
[1769886660971,0.28661272,78314.0,78279.0,0.092]
[1769886661367,0.00012611,78313.0,78279.0,0.092]
[1769886661569,0.40151436,78313.0,78279.0,0.092]
[1769886661765,0.27382572,78310.0,78258.0,0.012796]
[1769886661966,0.12768864,78313.0,78258.0,0.012796]
[1769886661967,0.27382572,78305.0,78258.0,0.012796]
[1769886662270,0.092,78309.0,78251.0,0.3366]
[1769886662271,0.092,78309.0,78276.0,0.012793]
[1769886662466,0.12772044,78304.0,78276.0,0.012793]
[1769886662770,0.00013277,78303.0,78276.0,0.012793]
[1769886662971,0.00013277,78303.0,78275.0,0.09204]
[1769886663172,0.00013277,78303.0,78275.0,0.104833]
[1769886663472,0.12772615,78302.0,78275.0,0.104833]
[1769886663674,0.12772615,78302.0,78275.0,0.09204]
[1769886663868,0.12390648,78302.0,78278.0,0.28699965]
[1769886664064,0.012782,78346.0,78291.0,0.29979065]
[1769886664266,0.09204,78348.0,78298.0,0.28699965]
[1769886664466,0.41434158,78332.0,78292.0,0.09204]
[1769886664667,0.27382572,78330.0,78292.0,0.09204]
[1769886664862,0.21973435,78331.0,78292.0,0.37903965]
[1769886665066,0.21973435,78331.0,78293.0,0.28699965]
[1769886665268,0.09204,78331.0,78293.0,0.28699965]
[1769886665475,0.12769435,78330.0,78293.0,0.28699965]
[1769886665671,0.12769435,78330.0,78293.0,0.29978965]
[1769886665968,0.012781,78353.0,78304.0,0.28699965]
[1769886666173,0.27382572,78349.0,78293.0,0.28699965]
[1769886666376,0.063906,78353.0,78292.0,0.09204]
[1769886666377,0.012786,78320.0,78292.0,0.09204]
[1769886666575,0.012787,78314.0,78292.0,0.09204]
[1769886666768,0.28661272,78314.0,78292.0,0.09204]
[1769886666966,0.28661272,78314.0,78292.0,0.0881859]
[1769886667272,0.12770413,78313.0,78293.0,0.28098646]
[1769886667475,0.12385003,78313.0,78293.0,0.28098646]
[1769886667778,0.09204,78328.0,78293.0,0.28098646]
[1769886667981,0.12770902,78312.0,78293.0,0.28098646]
[1769886668173,0.012785,78326.0,78292.0,0.0881859]
[1769886668475,0.14049702,78311.0,78292.0,0.0881859]
[1769886668671,0.29862234,78304.0,78268.0,0.09204]
[1769886668868,0.012791,78290.0,78268.0,0.09204]
[1769886669069,0.12364043,78289.0,78268.0,0.09204]
[1769886669271,0.012794,78270.0,78261.0,8.3e-07]
[1769886669477,0.36258234,78287.0,78261.0,8.3e-07]
[1769886669478,0.012793,78278.0,78261.0,8.3e-07]
[1769886669673,0.012791,78292.0,78261.0,8.3e-07]
[1769886669878,0.12776368,78277.0,78261.0,0.09204083]
[1769886670083,0.12369979,78277.0,78261.0,0.09204083]
[1769886670278,0.09204,78295.0,78261.0,0.09204083]
[1769886670481,0.12776368,78292.0,78261.0,0.09204083]
[1769886670680,0.09204,78295.0,78262.0,0.28098646]
[1769886670981,0.012791,78291.0,78261.0,0.09204083]
[1769886671176,0.012791,78289.0,78261.0,0.09204083]
[1769886671380,0.29862234,78282.0,78261.0,8.3e-07]
[1769886671574,0.012796,78262.0,78221.0,0.28098646]
[1769886671775,0.012797,78255.0,78220.0,0.09208]
[1769886671983,0.012797,78255.0,78208.0,0.28098646]
[1769886671984,0.12569355,78254.0,78213.0,0.3368]
[1769886672178,0.012797,78251.0,78221.0,0.09208]
[1769886672482,0.012799,78244.0,78193.0,0.29379346]
[1769886672783,0.09208,78252.0,78209.0,0.28098646]
[1769886673078,0.29862234,78280.0,78194.0,0.09208]
[1769886673079,0.2510432,78301.0,78241.0,0.28098646]
[1769886673273,0.12448538,78300.0,78245.0,0.28098646]
[1769886673476,0.12784699,78278.0,78245.0,0.28098646]
[1769886673681,0.01279,78299.0,78246.0,0.012798]
[1769886673881,0.12777674,78277.0,78232.0,0.28098646]
[1769886674082,0.012795,78267.0,78233.0,0.09208]
[1769886674379,0.12248735,78266.0,78234.0,0.09208]
[1769886674585,0.012797,78253.0,78201.0,0.28098646]
[1769886674782,0.012797,78253.0,78202.0,0.42896]
[1769886674783,0.012798,78247.0,78202.0,0.42896]
[1769886674983,0.012802,78224.0,78202.0,0.09208]
[1769886675482,0.012804,78209.0,78189.0,0.09208]
[1769886675689,0.012806,78202.0,78156.0,0.28098646]
[1769886675983,0.012808,78188.0,78165.0,0.09208]
[1769886676181,0.29862234,78183.0,78148.0,0.09208]
[1769886676378,0.29862234,78197.0,78149.0,0.28098646]
[1769886676585,0.29862234,78197.0,78148.0,0.09208]
[1769886676586,0.012806,78198.0,78151.0,0.28098646]
[1769886676784,0.12787887,78196.0,78151.0,0.28098646]
[1769886676982,0.33692,78227.0,78150.0,0.48529679]
[1769886676983,0.012801,78232.0,78168.0,0.28098646]
[1769886677184,0.012801,78230.0,78174.0,0.28098646]
[1769886677383,0.012798,78247.0,78186.0,0.28098646]
[1769886677587,0.1279214,78229.0,78194.0,0.28098646]
[1769886677784,0.0128,78233.0,78195.0,0.09212]
[1769886678085,0.29862234,78231.0,78179.0,0.28098646]
[1769886678303,0.012804,78212.0,78180.0,0.09212]
[1769886678489,0.012806,78197.0,78166.0,0.337]
[1769886678679,0.012809,78182.0,78164.0,0.09212]
[1769886678885,0.012809,78182.0,78140.0,0.48529679]
[1769886678886,0.01281,78176.0,78161.0,8.5e-07]
[1769886679180,0.01281,78176.0,78148.0,0.09212]
[1769886679490,0.29862234,78201.0,78149.0,0.28098646]
[1769886679784,0.12790749,78196.0,78155.0,0.28098646]
[1769886679986,9.875e-05,78195.0,78157.0,0.28098646]
[1769886680192,0.064016,78218.0,78156.0,0.33704]
[1769886680193,0.012804,78211.0,78162.0,0.28098646]
[1769886680385,0.12791813,78194.0,78164.0,0.28098646]
[1769886680595,0.012803,78218.0,78170.0,0.28098646]
[1769886680888,0.12791813,78193.0,78163.0,0.09216]
[1769886681085,0.012807,78194.0,78163.0,0.09216]
[1769886681286,0.012807,78191.0,78163.0,0.09216]
[1769886681483,0.012801,78227.0,78169.0,0.16190586]
[1769886681792,0.12791158,78206.0,78172.0,0.16190586]
[1769886681987,0.12791158,78206.0,78178.0,0.14731683]
[1769886682188,0.012802,78221.0,78179.0,0.09216]
[1769886682390,0.104962,78221.0,78179.0,0.09216]
[1769886682688,0.012803,78219.0,78179.0,0.09216]
[1769886682990,0.012804,78212.0,78179.0,0.09216]
[1769886683489,0.12787723,78211.0,78179.0,0.09216]
[1769886683890,0.31142534,78216.0,78179.0,0.09216]
[1769886684088,0.012804,78209.0,78179.0,0.09216]
[1769886684286,0.012805,78203.0,78179.0,0.09216]
[1769886684482,0.012804,78211.0,78179.0,0.09216]
[1769886684682,0.12788541,78208.0,78179.0,0.09216]
[1769886684891,0.012803,78215.0,78179.0,0.09216]
[1769886685196,0.012804,78209.0,78179.0,0.09216]
[1769886685487,0.31142934,78196.0,78165.0,0.09216]
[1769886685689,0.012807,78193.0,78165.0,0.09216]
[1769886685894,0.31143034,78190.0,78165.0,0.09216]
[1769886686084,0.09216,78189.0,78165.0,0.09216]
[1769886686684,0.12790913,78188.0,78165.0,0.09216]
[1769886687791,0.012808,78187.0,78165.0,0.09216]
[1769886688088,0.012809,78181.0,78144.0,0.3372]
[1769886688294,0.29862234,78226.0,78152.0,0.23702696]
[1769886688588,0.29862234,78217.0,78151.0,0.0922]
[1769886688792,0.31142734,78202.0,78151.0,0.012814]
[1769886689089,0.42944,78216.0,78159.0,0.24983829]
[1769886689090,0.012805,78206.0,78159.0,0.24983829]
[1769886689294,0.22009522,78201.0,78163.0,0.23702629]
[1769886689489,0.2485961,78248.0,78163.0,0.23702629]
[1769886689490,0.012805,78207.0,78164.0,0.0922]
[1769886689692,0.12789522,78200.0,78165.0,0.23702629]
[1769886689994,0.012804,78214.0,78165.0,0.23702629]
[1769886690196,0.29862234,78198.0,78136.0,0.23467941]
[1769886690386,0.012807,78190.0,78144.0,0.012815]
[1769886690594,0.31142934,78190.0,78145.0,0.0922]
[1769886690789,0.012808,78187.0,78145.0,0.0922]
[1769886691097,0.31143034,78185.0,78145.0,0.0922]
[1769886691294,0.29862234,78176.0,78130.0,0.0922]
[1769886691489,0.012812,78165.0,78130.0,0.0922]
[1769886692094,0.12796314,78164.0,78130.0,0.0922]
[1769886692292,0.12796314,78164.0,78138.0,0.22161818]
[1769886692490,0.0922,78191.0,78141.0,0.22461818]
[1769886692798,0.0922,78191.0,78130.0,0.0922]
[1769886692799,0.12796314,78163.0,78146.0,0.22461818]
[1769886693098,0.012807,78191.0,78147.0,0.0922]
[1769886693305,0.012808,78185.0,78147.0,0.0922]
[1769886693594,0.012808,78189.0,78147.0,0.0922]
[1769886693800,0.12793286,78184.0,78148.0,0.22461818]
[1769886694092,0.0922,78185.0,78147.0,0.0922]
[1769886694295,0.012809,78178.0,78147.0,0.0922]
[1769886694491,0.12793286,78183.0,78147.0,0.29336282]
[1769886694686,0.012809,78182.0,78147.0,0.0922]
[1769886695087,0.14074349,78182.0,78147.0,0.0922]
[1769886695292,0.012809,78182.0,78147.0,0.0922]
[1769886695492,0.12793449,78181.0,78147.0,0.0922]
[1769886695994,0.29862234,78184.0,78133.0,0.20116282]
[1769886696299,0.1177684,78183.0,78138.0,0.20860069]
[1769886696499,0.105008,78185.0,78138.0,0.20860069]
[1769886696698,0.012809,78181.0,78138.0,0.20860069]
[1769886697092,0.24882372,78180.0,78143.0,0.20860069]
[1769886697299,0.12794022,78180.0,78144.0,0.09224]
[1769886697503,0.012809,78181.0,78144.0,0.09224]
[1769886697692,0.12794022,78179.0,78144.0,0.09224]
[1769886697898,0.12794022,78179.0,78144.0,0.30084069]
[1769886698096,0.0922,78185.0,78144.0,0.30084069]
[1769886698298,0.25068331,78184.0,78144.0,0.30084069]
[1769886698495,0.0922,78185.0,78144.0,0.30084069]
[1769886698496,0.12274473,78183.0,78144.0,0.30084069]
[1769886698694,0.12274473,78182.0,78144.0,0.31365569]
[1769886698893,0.12793858,78183.0,78160.0,0.012812]
[1769886699099,0.3729195,78206.0,78162.0,0.2075315]
[1769886699299,0.25083899,78205.0,78162.0,0.2075315]
[1769886699496,0.012807,78194.0,78161.0,0.09224]
[1769886699798,0.25083899,78193.0,78161.0,0.09224]
[1769886699997,0.2806795,78189.0,78137.0,0.21653952]
[1769886700302,0.2806795,78189.0,78138.0,0.09224]
[1769886700303,0.012809,78179.0,78138.0,0.09224]
[1769886700601,0.12290204,78178.0,78139.0,0.22935552]
[1769886700803,0.012809,78181.0,78139.0,0.22935552]
[1769886700804,0.12290204,78177.0,78139.0,0.22935552]
[1769886701002,0.12290204,78176.0,78139.0,0.22935552]
[1769886701200,0.12290204,78175.0,78150.0,0.21653952]
[1769886701396,0.12290204,78174.0,78150.0,0.21653952]
[1769886701593,0.37137262,78201.0,78160.0,0.21653952]
[1769886701795,0.12794513,78184.0,78161.0,0.09224]
[1769886701999,0.37137262,78201.0,78163.0,0.012812]
[1769886702201,0.12207538,78200.0,78163.0,0.22466621]
[1769886702405,0.012806,78198.0,78163.0,0.21185421]
[1769886702706,0.12207538,78197.0,78163.0,0.21185421]